[Event "31st Kavala Open-A 2022"]
[Site "Kavala"]
[Date "2022.08.02"]
[Round "9.4"]
[White "Gopal G.N."]
[Black "Gagare, Shardul"]
[Result "1-0"]
[ECO "B45"]
[WhiteElo "2593"]
[BlackElo "2514"]
[Annotator "RC"]
[PlyCount "123"]
[EventDate "2022.07.27"]
[EventType "swiss"]
[EventCountry "GRE"]
[SourceTitle "playchess.com"]
[Source "ChessBase"]
[SourceQuality "1"]
[TimeControl "40/5400+30:1800+30"]

1. e4 {[%emt 0:00:03]} c5 {[%emt 0:05:15]} 2. Nf3 {[%emt 0:00:17]} e6 {[%emt 0:00:26]} 3. d4 {[%emt 0:00:04]} cxd4 {[%emt 0:00:05]} 4. Nxd4 {[%emt 0:00:03]} Nf6 {[%emt 0:00:30]} 5. Nc3 {[%emt 0:00:14]} Nc6 {[%emt 0:00:08]} 6. Nxc6 {[%emt 0:04:32]} bxc6 {[%emt 0:00:09]} 7. e5 {[%emt 0:00:03]} Nd5 {[%emt 0:00:07]} 8. Ne4 {[%emt 0:00:04]} Bb7 {[%emt 0:00:38]} 9. Be2 {[%emt 0:05:17]} c5 {[%emt 0:02:52]} 10. O-O {[%emt 0:02:09]} Qc7 {[%emt 0:00:20]} 11. Nd6+ {[%emt 0:09:26]} Bxd6 {[%emt 0:00:10]} 12. exd6 {[%emt 0:00:02]} Qc6 {[%emt 0:00:14]} 13. f3 {[%emt 0:04:04]} e5 {[%emt 0:00:19]} 14. c4 {[%emt 0:07:00]} Nf4 {[%emt 0:00:10]} 15. Bxf4 {[%emt 0:02:19]} exf4 {[%emt 0:00:07]} 16. Qd2 {[%emt 0:00:49]} O-O {[%emt 0:00:11]} 17. Qxf4 {[%emt 0:04:24]} Rae8 {[%emt 0:00:14]} 18. Bd3 {[%emt 0:07:29]} Re6 {[%emt 0:00:24]} 19. Rfe1 {[%emt 0:03:09]} Qxd6 {[%emt 0:03:39]} 20. Qxd6 {[%emt 0:00:43]} Rxd6 {[%emt 0:00:09]} 21. Rad1 {[%emt 0:00:09]} g6 {[%emt 0:03:36]} 22. Be4 {[%emt 0:05:03]} Rb6 {[%emt 0:10:01]} 23. b3 {[%emt 0:01:20]} Bxe4 {[%emt 0:13:49]} 24. Rxe4 {[%emt 0:00:11]} Rd8 {[%emt 0:01:49]} 25. Re5 {[%emt 0:22:49]} Rc6 {[%emt 0:02:02]} 26. Rdd5 {[%emt 0:01:29]} d6 {[%emt 0:13:08]} 27. Re7 {[%emt 0:00:26]} Ra6 {[%emt 0:00:12]} 28. Rd2 {[%emt 0:00:17]} Kf8 {[%emt 0:00:05]} 29. Rb7 {[%emt 0:01:21]} Re8 {[%emt 0:00:22]} 30. Rd7 {[%emt 0:04:44]} Re6 {[%emt 0:04:32]} 31. Kf2 {[%emt 0:00:22]} Ke8 {[%emt 0:01:20]} 32. Rb7 {[%emt 0:00:07]} Kf8 {[%emt 0:00:07]} 33. h4 {[%emt 0:03:28]} Re7 {[%emt 0:01:04]} 34. Rb8+ {[%emt 0:00:21]} Re8 {[%emt 0:00:12]} 35. Rb5 {[%emt 0:01:44]} Rc6 {[%emt 0:05:11]} 36. g4 {[%emt 0:03:17]} a6 {[%emt 0:01:48]} 37. Rb7 {[%emt 0:00:07]} Re7 {[%emt 0:00:04]} 38. Rb8+ {[%emt 0:00:51]} Re8 {[%emt 0:00:04]} 39. Rxe8+ {[%emt 0:00:31]} Kxe8 {[%emt 0:00:01]} 40. Ke3 {[%emt 0:00:00]} a5 {[%emt 0:00:00]} 41. Kf4 {[%emt 0:06:08]} Kf8 {[%emt 0:19:46]} 42. h5 {[%emt 0:09:17]} Kg7 {[%emt 0:04:26]} 43. hxg6 {[%emt 0:02:13]} hxg6 {[%emt 0:01:39]} 44. Ke4 {[%emt 0:01:32]} Ra6 {[%emt 0:14:09]} 45. Kd5 {[%emt 0:01:48]} g5 {[%emt 0:04:43]} 46. Re2 {[%emt 0:05:35]} a4 {[%emt 0:06:32]} 47. bxa4 {[%emt 0:00:59]} Rxa4 {[%emt 0:00:06]} 48. Re4 {[%emt 0:02:44]} Ra3 {[%emt 0:03:18]} 49. Kxd6 {[%emt 0:01:33]} Rxf3 {[%emt 0:00:05]} 50. Kxc5 {[%emt 0:01:26]} Ra3 {[%emt 0:05:02]} 51. Re2 {[%emt 0:01:54]} Rg3 {[%emt 0:00:29]} 52. a4 {[%emt 0:01:52]} Rxg4 {[%emt 0:00:05]} 53. a5 {[%emt 0:00:04]} Rh4 {[%emt 0:03:00]} 54. a6 {[%emt 0:00:34]} Rh8 {[%emt 0:00:18]} 55. a7 {[%emt 0:01:43]} f5 {[%emt 0:00:10]} 56. Ra2 {[%emt 0:00:49]} Ra8 {[%emt 0:00:34]} 57. Kb6 {[%emt 0:01:34]} f4 {[%emt 0:01:55]} 58. Kb7 {[%emt 0:00:28]} Rf8 {[%emt 0:00:45]} 59. a8=Q {[%emt 0:01:34]} Rxa8 {[%emt 0:00:11]} 60. Kxa8 {[%emt 0:00:09]} f3 {[%emt 0:01:30]} 61. c5 {[%emt 0:00:11]} g4 {[%emt 0:00:11]} 62. Rf2 {[%emt 0:01:45]} 1-0

[Event "31st Kavala Open-A 2022"]
[Site "Kavala"]
[Date "2022.08.02"]
[Round "9.6"]
[White "Schroeder, Jan-Christian"]
[Black "Halkias, Stelios"]
[Result "1-0"]
[ECO "B91"]
[WhiteElo "2563"]
[BlackElo "2512"]
[Annotator "RC"]
[PlyCount "88"]
[EventDate "2022.07.27"]
[EventType "swiss"]
[EventCountry "GRE"]
[SourceTitle "playchess.com"]
[Source "ChessBase"]
[SourceQuality "1"]
[TimeControl "40/5400+30:1800+30"]

1. e4 {[%emt 0:03:16]} c5 {[%emt 0:00:30]} 2. Nf3 {[%emt 0:00:04]} d6 {[%emt 0:00:10]} 3. d4 {[%emt 0:00:05]} cxd4 {[%emt 0:00:08]} 4. Nxd4 {[%emt 0:00:03]} Nf6 {[%emt 0:00:09]} 5. Nc3 {[%emt 0:00:04]} a6 {[%emt 0:00:07]} 6. g3 {[%emt 0:00:03]} e5 {[%emt 0:00:18]} 7. Nb3 {[%emt 0:00:04]} Be7 {[%emt 0:00:40]} 8. Bg2 {[%emt 0:00:04]} O-O {[%emt 0:00:22]} 9. O-O {[%emt 0:00:05]} b5 {[%emt 0:01:20]} 10. Be3 {[%emt 0:00:04]} Nbd7 {[%emt 0:05:38]} 11. a4 {[%emt 0:00:05]} b4 {[%emt 0:03:17]} 12. Nd5 {[%emt 0:00:03]} a5 {[%emt 0:00:48]} 13. Nxe7+ {[%emt 0:25:07]} Qxe7 {[%emt 0:00:10]} 14. Qd2 {[%emt 0:00:02]} Nc5 {[%emt 0:41:11]} 15. Nxc5 {[%emt 0:02:33]} dxc5 {[%emt 0:01:33]} 16. f3 {[%emt 0:00:26]} Be6 {[%emt 0:01:42]} 17. Rfd1 {[%emt 0:08:09]} Rfd8 {[%emt 0:02:52]} 18. Qf2 {[%emt 0:02:01]} c4 {[%emt 0:00:53]} 19. Rxd8+ {[%emt 0:08:10]} Qxd8 {[%emt 0:01:42]} 20. Bf1 {[%emt 0:01:54]} Qd7 {[%emt 0:03:10]} 21. Qd2 {[%emt 0:11:51]} Qc6 {[%emt 0:03:05]} 22. c3 {[%emt 0:01:09]} b3 {[%emt 0:07:23]} 23. h4 {[%emt 0:01:21]} Nd7 {[%emt 0:02:13]} 24. Kh2 {[%emt 0:02:34]} Nc5 {[%emt 0:16:59]} 25. Bxc5 {[%emt 0:04:45]} Qxc5 {[%emt 0:00:02]} 26. Rd1 {[%emt 0:01:58]} Qc8 {[%emt 0:03:52]} 27. Qd6 {[%emt 0:01:43]} Qe8 {[%emt 0:00:09]} 28. Qc7 {[%emt 0:10:19]} Qb8 {[%emt 0:02:26]} 29. Qc5 {[%emt 0:01:17]} Qf8 {[%emt 0:01:19]} 30. Qxe5 {[%emt 0:01:27]} Rd8 {[%emt 0:00:42]} 31. Rd4 {[%emt 0:00:32]} Rxd4 {[%emt 0:00:24]} 32. Qxd4 {[%emt 0:00:15]} Qc8 {[%emt 0:00:27]} 33. f4 {[%emt 0:03:22]} f6 {[%emt 0:00:33]} 34. Qd6 {[%emt 0:01:59]} h6 {[%emt 0:00:40]} 35. Bg2 {[%emt 0:04:13]} Qe8 {[%emt 0:00:22]} 36. e5 {[%emt 0:03:12]} fxe5 {[%emt 0:00:34]} 37. Qxe5 {[%emt 0:00:11]} Qd7 {[%emt 0:00:28]} 38. Qxa5 {[%emt 0:01:50]} Qd2 {[%emt 0:00:41]} 39. Qa8+ {[%emt 0:00:52]} Kf7 {[%emt 0:00:08]} 40. f5 {[%emt 0:00:00]} Bxf5 {[%emt 0:00:00]} 41. Qd5+ {[%emt 0:02:56]} Qxd5 {[%emt 0:02:57]} 42. Bxd5+ {[%emt 0:00:09]} Be6 {[%emt 0:00:40]} 43. Bxe6+ {[%emt 0:02:44]} Kxe6 {[%emt 0:00:49]} 44. Kg2 {[%emt 0:00:25]} Kd5 {[%emt 0:00:32]} 1-0

[Event "31st Kavala Open-A 2022"]
[Site "Kavala"]
[Date "2022.08.02"]
[Round "9.7"]
[White "Can, Isik"]
[Black "Priyanka Nutakki"]
[Result "1-0"]
[ECO "B90"]
[WhiteElo "2445"]
[BlackElo "2308"]
[Annotator "RC"]
[PlyCount "53"]
[EventDate "2022.07.27"]
[EventType "swiss"]
[EventCountry "GRE"]
[SourceTitle "playchess.com"]
[Source "ChessBase"]
[SourceQuality "1"]
[TimeControl "40/5400+30:1800+30"]

1. e4 {[%emt 0:00:04]} c5 {[%emt 0:04:41]} 2. Nf3 {[%emt 0:00:07]} d6 {[%emt 0:00:05]} 3. d4 {[%emt 0:00:03]} cxd4 {[%emt 0:00:04]} 4. Nxd4 {[%emt 0:00:03]} Nf6 {[%emt 0:00:05]} 5. Nc3 {[%emt 0:00:03]} a6 {[%emt 0:00:04]} 6. Be3 {[%emt 0:00:07]} e5 {[%emt 0:00:10]} 7. Nb3 {[%emt 0:00:05]} Be7 {[%emt 0:02:37]} 8. h3 {[%emt 0:00:11]} h6 {[%emt 0:02:18]} 9. f4 {[%emt 0:01:47]} Qc7 {[%emt 0:10:49]} 10. Qd2 {[%emt 0:23:18]} b5 {[%emt 0:14:37]} 11. O-O-O {[%emt 0:00:00]} Nbd7 {[%emt 0:04:28]} 12. g4 {[%emt 0:04:51]} Bb7 {[%emt 0:03:36]} 13. Nd5 {[%emt 0:00:00]} Bxd5 {[%emt 0:00:20]} 14. exd5 {[%emt 0:05:15]} O-O {[%emt 0:09:25]} 15. Kb1 {[%emt 0:09:55]} a5 {[%emt 0:06:33]} 16. fxe5 {[%emt 0:01:49]} Nxe5 {[%emt 0:00:58]} 17. Nd4 {[%emt 0:01:43]} Nc4 {[%emt 0:06:40]} 18. Bxc4 {[%emt 0:01:35]} Qxc4 {[%emt 0:00:18]} 19. Bxh6 {[%emt 0:17:25]} gxh6 {[%emt 0:20:06]} 20. Nf5 {[%emt 0:00:00]} Bd8 {[%emt 0:00:08]} 21. Qxh6 {[%emt 0:00:00]} Ne8 {[%emt 0:06:35]} 22. Rhe1 {[%emt 0:00:00]} Rc8 {[%emt 0:00:00]} 23. c3 {[%emt 0:00:00]} Bf6 {[%emt 0:00:00]} 24. Rd4 {[%emt 0:00:00]} Qxd4 {[%emt 0:00:00]} 25. cxd4 {[%emt 0:00:03]} Rc7 {[%emt 0:00:00]} 26. a4 {[%emt 0:00:46]} b4 {[%emt 0:00:44]} 27. Rxe8 {[%emt 0:00:34]} 1-0

[Event "31st Kavala Open-A 2022"]
[Site "Kavala"]
[Date "2022.08.02"]
[Round "9.8"]
[White "Zawadzka, Jolanta"]
[Black "Rahmanidis, Petros"]
[Result "1-0"]
[ECO "B62"]
[WhiteElo "2416"]
[BlackElo "2191"]
[Annotator "RC"]
[PlyCount "83"]
[EventDate "2022.07.27"]
[EventType "swiss"]
[EventCountry "GRE"]
[SourceTitle "playchess.com"]
[Source "ChessBase"]
[SourceQuality "1"]
[TimeControl "40/5400+30:1800+30"]

1. e4 {[%emt 0:00:03]} c5 {[%emt 0:04:00]} 2. Nf3 {[%emt 0:00:08]} d6 {[%emt 0:00:10]} 3. d4 {[%emt 0:00:06]} cxd4 {[%emt 0:00:14]} 4. Nxd4 {[%emt 0:00:05]} Nf6 {[%emt 0:00:06]} 5. Nc3 {[%emt 0:00:05]} Nc6 {[%emt 0:00:16]} 6. Bg5 {[%emt 0:00:15]} e6 {[%emt 0:00:29]} 7. Qd3 {[%emt 0:00:18]} Bd7 {[%emt 0:04:23]} 8. Ndb5 {[%emt 0:00:30]} Nb4 {[%emt 0:00:39]} 9. Qd1 {[%emt 0:00:19]} Qb8 {[%emt 0:00:35]} 10. Bxf6 {[%emt 0:00:08]} gxf6 {[%emt 0:00:49]} 11. Be2 {[%emt 0:00:09]} a6 {[%emt 0:13:24]} 12. Nd4 {[%emt 0:00:16]} Nc6 {[%emt 0:00:58]} 13. O-O {[%emt 0:01:29]} Qa7 {[%emt 0:07:27]} 14. Nb3 {[%emt 0:08:57]} Be7 {[%emt 0:05:11]} 15. Kh1 {[%emt 0:04:53]} Rg8 {[%emt 0:21:41]} 16. a4 {[%emt 0:08:28]} b6 {[%emt 0:06:05]} 17. f4 {[%emt 0:06:43]} Rg7 {[%emt 0:00:22]} 18. Bf3 {[%emt 0:07:20]} Rc8 {[%emt 0:01:30]} 19. Ne2 {[%emt 0:01:50]} Qc7 {[%emt 0:08:13]} 20. c3 {[%emt 0:04:00]} Nd8 {[%emt 0:04:44]} 21. Ng3 {[%emt 0:05:03]} Rg8 {[%emt 0:00:24]} 22. Nd4 {[%emt 0:02:35]} Nb7 {[%emt 0:01:48]} 23. Qe2 {[%emt 0:05:58]} Qc4 {[%emt 0:03:25]} 24. Qf2 {[%emt 0:02:17]} Qc7 {[%emt 0:00:22]} 25. Bh5 {[%emt 0:09:45]} Kf8 {[%emt 0:00:52]} 26. Bd1 {[%emt 0:03:47]} Na5 {[%emt 0:03:32]} 27. Be2 {[%emt 0:03:46]} Ra8 {[%emt 0:01:10]} 28. Qf3 {[%emt 0:00:16]} Bc8 {[%emt 0:03:40]} 29. Qh5 {[%emt 0:00:47]} Kg7 {[%emt 0:00:35]} 30. Bd3 {[%emt 0:02:58]} Bb7 {[%emt 0:00:17]} 31. Rf3 {[%emt 0:04:17]} Nc6 {[%emt 0:03:42]} 32. Nge2 {[%emt 0:08:39]} Nxd4 {[%emt 0:01:24]} 33. Nxd4 {[%emt 0:00:14]} Rh8 {[%emt 0:03:27]} 34. Rg3+ {[%emt 0:05:57]} Kf8 {[%emt 0:00:04]} 35. f5 {[%emt 0:01:51]} Qc5 {[%emt 0:01:30]} 36. Qh6+ {[%emt 0:00:21]} Ke8 {[%emt 0:00:07]} 37. fxe6 {[%emt 0:00:15]} fxe6 {[%emt 0:00:45]} 38. Nxe6 {[%emt 0:00:19]} Qc8 {[%emt 0:00:25]} 39. Qh5+ {[%emt 0:01:33]} Kd7 {[%emt 0:00:09]} 40. Qf5 {[%emt 0:00:00]} Rg8 {[%emt 0:00:00]} 41. Rxg8 {[%emt 0:01:27]} Qxg8 {[%emt 0:05:22]} 42. Nc5+ {[%emt 0:00:10]} 1-0

[Event "31st Kavala Open-A 2022"]
[Site "Kavala"]
[Date "2022.08.02"]
[Round "9.9"]
[White "Ladopoulos, Dimitrios"]
[Black "Kanakaris, Georgios"]
[Result "1/2-1/2"]
[ECO "D77"]
[WhiteElo "2335"]
[BlackElo "2389"]
[Annotator "RC"]
[PlyCount "92"]
[EventDate "2022.07.27"]
[EventType "swiss"]
[EventCountry "GRE"]
[SourceTitle "playchess.com"]
[Source "ChessBase"]
[SourceQuality "1"]
[TimeControl "40/5400+30:1800+30"]

1. Nf3 {[%emt 0:01:43]} Nf6 {[%emt 0:00:09]} 2. d4 {[%emt 0:02:36]} g6 {[%emt 0:00:15]} 3. g3 {[%emt 0:03:38]} Bg7 {[%emt 0:00:08]} 4. Bg2 {[%emt 0:00:08]} O-O {[%emt 0:00:07]} 5. O-O {[%emt 0:04:28]} d5 {[%emt 0:00:08]} 6. c4 {[%emt 0:03:02]} dxc4 {[%emt 0:00:14]} 7. Na3 {[%emt 0:00:44]} Nc6 {[%emt 0:00:07]} 8. Nxc4 {[%emt 0:00:33]} Be6 {[%emt 0:00:10]} 9. b3 {[%emt 0:06:10]} Bd5 {[%emt 0:00:21]} 10. Bb2 {[%emt 0:05:27]} a5 {[%emt 0:00:37]} 11. Rc1 {[%emt 0:10:29]} a4 {[%emt 0:00:18]} 12. bxa4 {[%emt 0:08:35]} Ra6 {[%emt 0:00:19]} 13. a3 {[%emt 0:03:42]} Qa8 {[%emt 0:13:10]} 14. Ne3 {[%emt 0:03:33]} Be4 {[%emt 0:02:07]} 15. Ne5 {[%emt 0:04:11]} Bxg2 {[%emt 0:09:55]} 16. Nxg2 {[%emt 0:01:12]} Rxa4 {[%emt 0:00:50]} 17. Nxc6 {[%emt 0:00:13]} bxc6 {[%emt 0:00:04]} 18. Qc2 {[%emt 0:02:10]} Rb8 {[%emt 0:00:18]} 19. Ne1 {[%emt 0:03:20]} Ne8 {[%emt 0:04:08]} 20. Nd3 {[%emt 0:03:23]} Bxd4 {[%emt 0:02:06]} 21. Bxd4 {[%emt 0:00:04]} Rxd4 {[%emt 0:00:05]} 22. Nb4 {[%emt 0:02:11]} Rb6 {[%emt 0:00:23]} 23. Nxc6 {[%emt 0:00:21]} Rd6 {[%emt 0:00:05]} 24. Ne5 {[%emt 0:01:27]} Re6 {[%emt 0:02:48]} 25. Nc4 {[%emt 0:02:22]} Ra6 {[%emt 0:05:58]} 26. Qb2 {[%emt 0:01:57]} Qe4 {[%emt 0:09:01]} 27. Rfd1 {[%emt 0:03:45]} Ra8 {[%emt 0:00:17]} 28. Ne3 {[%emt 0:00:32]} Rb6 {[%emt 0:03:32]} 29. Qc3 {[%emt 0:01:29]} Rba6 {[%emt 0:01:12]} 30. Ra1 {[%emt 0:04:21]} Rc6 {[%emt 0:05:17]} 31. Qb2 {[%emt 0:01:26]} Nd6 {[%emt 0:08:55]} 32. Rd3 {[%emt 0:08:07]} Rb6 {[%emt 0:04:24]} 33. Qc3 {[%emt 0:01:23]} c6 {[%emt 0:01:55]} 34. f3 {[%emt 0:01:57]} Qe6 {[%emt 0:01:17]} 35. Ng4 {[%emt 0:00:36]} h5 {[%emt 0:00:33]} 36. Re3 {[%emt 0:01:00]} Qd5 {[%emt 0:08:39]} 37. Ne5 {[%emt 0:05:02]} Nb5 {[%emt 0:10:17]} 38. Qd3 {[%emt 0:00:14]} Kg7 {[%emt 0:04:14]} 39. Qxd5 {[%emt 0:00:59]} cxd5 {[%emt 0:00:07]} 40. Rb1 {[%emt 0:00:00]} Raa6 {[%emt 0:00:00]} 41. Nd7 {[%emt 0:08:40]} Rd6 {[%emt 0:04:13]} 42. Rxe7 {[%emt 0:03:28]} Nxa3 {[%emt 0:01:10]} 43. Rb7 {[%emt 0:01:11]} Re6 {[%emt 0:00:53]} 44. Nc5 {[%emt 0:01:24]} Rxe7 {[%emt 0:00:40]} 45. Rxe7 {[%emt 0:00:02]} Rc6 {[%emt 0:04:03]} 46. Nd3 {[%emt 0:00:14]} Re6 {[%emt 0:00:25]} 1/2-1/2

[Event "31st Kavala Open-A 2022"]
[Site "Kavala"]
[Date "2022.08.02"]
[Round "9.10"]
[White "Levin, Guy"]
[Black "Trimitzios, Petros"]
[Result "0-1"]
[ECO "A15"]
[WhiteElo "2363"]
[BlackElo "2369"]
[Annotator "RC"]
[PlyCount "138"]
[EventDate "2022.07.27"]
[EventType "swiss"]
[EventCountry "GRE"]
[SourceTitle "playchess.com"]
[Source "ChessBase"]
[SourceQuality "1"]
[TimeControl "40/5400+30:1800+30"]

1. c4 {[%emt 0:00:02]} Nf6 {[%emt 0:00:11]} 2. Nf3 {[%emt 0:00:34]} c6 {[%emt 0:00:33]} 3. b3 {[%emt 0:00:07]} d6 {[%emt 0:00:53]} 4. Bb2 {[%emt 0:08:04]} e5 {[%emt 0:00:11]} 5. d3 {[%emt 0:00:04]} g6 {[%emt 0:00:06]} 6. g3 {[%emt 0:00:14]} Bg7 {[%emt 0:00:01]} 7. Bg2 {[%emt 0:00:08]} O-O {[%emt 0:00:06]} 8. O-O {[%emt 0:00:07]} Nbd7 {[%emt 0:00:59]} 9. Nbd2 {[%emt 0:01:37]} Re8 {[%emt 0:00:03]} 10. Qc2 {[%emt 0:01:43]} b6 {[%emt 0:08:37]} 11. Ne4 {[%emt 0:26:52]} Nxe4 {[%emt 0:01:57]} 12. dxe4 {[%emt 0:00:02]} Nc5 {[%emt 0:02:04]} 13. Rfd1 {[%emt 0:03:08]} Qe7 {[%emt 0:04:02]} 14. b4 {[%emt 0:09:35]} Ne6 {[%emt 0:01:02]} 15. e3 {[%emt 0:00:53]} Bb7 {[%emt 0:03:38]} 16. a4 {[%emt 0:03:03]} a5 {[%emt 0:07:30]} 17. c5 {[%emt 0:10:05]} bxc5 {[%emt 0:11:57]} 18. bxa5 {[%emt 0:05:12]} Rxa5 {[%emt 0:03:58]} 19. Qd2 {[%emt 0:00:07]} Rea8 {[%emt 0:00:16]} 20. Qxd6 {[%emt 0:01:33]} Qxd6 {[%emt 0:02:45]} 21. Rxd6 {[%emt 0:00:02]} Rxa4 {[%emt 0:00:09]} 22. Rad1 {[%emt 0:07:24]} Bf8 {[%emt 0:03:20]} 23. Rxe6 {[%emt 0:01:07]} fxe6 {[%emt 0:00:02]} 24. Bh3 {[%emt 0:00:19]} Re8 {[%emt 0:02:24]} 25. Rd7 {[%emt 0:08:29]} Rb4 {[%emt 0:11:39]} 26. Bxe5 {[%emt 0:00:39]} Ba6 {[%emt 0:05:57]} 27. Kg2 {[%emt 0:01:19]} Rb7 {[%emt 0:00:09]} 28. Rd1 {[%emt 0:02:01]} Be2 {[%emt 0:04:33]} 29. Rc1 {[%emt 0:00:01]} Bxf3+ {[%emt 0:01:25]} 30. Kxf3 {[%emt 0:00:03]} Rd7 {[%emt 0:00:30]} 31. Ke2 {[%emt 0:01:19]} Kf7 {[%emt 0:00:06]} 32. f4 {[%emt 0:01:49]} Ra8 {[%emt 0:00:11]} 33. Rc2 {[%emt 0:00:15]} Ra3 {[%emt 0:00:45]} 34. Bc3 {[%emt 0:02:11]} Rda7 {[%emt 0:00:28]} 35. f5 {[%emt 0:01:08]} exf5 {[%emt 0:00:25]} 36. exf5 {[%emt 0:00:04]} Ra2 {[%emt 0:00:09]} 37. fxg6+ {[%emt 0:00:21]} hxg6 {[%emt 0:00:02]} 38. Rxa2 {[%emt 0:02:19]} Rxa2+ {[%emt 0:00:02]} 39. Kd3 {[%emt 0:00:09]} Rxh2 {[%emt 0:00:08]} 40. Bd7 {[%emt 0:00:00]} Bg7 {[%emt 0:00:00]} 41. Be1 {[%emt 0:02:45]} Ke7 {[%emt 0:03:00]} 42. Bxc6 {[%emt 0:00:05]} Kd6 {[%emt 0:02:03]} 43. Be4 {[%emt 0:00:18]} g5 {[%emt 0:00:06]} 44. g4 {[%emt 0:00:03]} Be5 {[%emt 0:00:06]} 45. Ba5 {[%emt 0:00:48]} Bf6 {[%emt 0:02:27]} 46. Bf5 {[%emt 0:00:13]} Ra2 {[%emt 0:00:14]} 47. Be1 {[%emt 0:00:26]} Ra3+ {[%emt 0:00:26]} 48. Ke2 {[%emt 0:01:43]} Kd5 {[%emt 0:00:43]} 49. e4+ {[%emt 0:00:26]} Kd6 {[%emt 0:00:14]} 50. Bd2 {[%emt 0:00:12]} Ke5 {[%emt 0:01:03]} 51. Bc1 {[%emt 0:00:18]} Rb3 {[%emt 0:00:10]} 52. Kd2 {[%emt 0:00:10]} Kd6 {[%emt 0:05:50]} 53. Kc2 {[%emt 0:00:40]} Rc3+ {[%emt 0:00:17]} 54. Kd1 {[%emt 0:01:50]} Rg3 {[%emt 0:01:45]} 55. e5+ {[%emt 0:00:18]} Bxe5 {[%emt 0:00:02]} 56. Bxg5 {[%emt 0:00:08]} c4 {[%emt 0:00:09]} 57. Ke2 {[%emt 0:09:10]} Kc5 {[%emt 0:00:19]} 58. Be3+ {[%emt 0:01:40]} Bd4 {[%emt 0:00:47]} 59. Bc1 {[%emt 0:03:15]} Rg1 {[%emt 0:02:37]} 60. Bd2 {[%emt 0:00:26]} Rg2+ {[%emt 0:00:26]} 61. Kd1 {[%emt 0:00:10]} c3 {[%emt 0:00:11]} 62. Bf4 {[%emt 0:01:27]} Kb4 {[%emt 0:00:12]} 63. Kc1 {[%emt 0:00:16]} Bc5 {[%emt 0:02:49]} 64. Bg5 {[%emt 0:01:01]} Ka3 {[%emt 0:01:26]} 65. Bf4 {[%emt 0:03:31]} Ka2 {[%emt 0:01:00]} 66. Kd1 {[%emt 0:02:12]} Kb3 {[%emt 0:01:52]} 67. Be6+ {[%emt 0:04:21]} Kb2 {[%emt 0:00:08]} 68. Bc1+ {[%emt 0:00:06]} Kb1 {[%emt 0:00:06]} 69. Bf5+ {[%emt 0:00:04]} c2+ {[%emt 0:00:18]} 0-1

[Event "31st Kavala Open-A 2022"]
[Site "Kavala"]
[Date "2022.08.02"]
[Round "9.11"]
[White "Maksimovic, Branimir"]
[Black "Santiago, Yago De Moura"]
[Result "0-1"]
[ECO "C11"]
[WhiteElo "2203"]
[BlackElo "2513"]
[Annotator "RC"]
[PlyCount "92"]
[EventDate "2022.07.27"]
[EventType "swiss"]
[EventCountry "GRE"]
[SourceTitle "playchess.com"]
[Source "ChessBase"]
[SourceQuality "1"]
[TimeControl "40/5400+30:1800+30"]

1. Nc3 {[%emt 0:07:47]} e6 {[%emt 0:03:25]} 2. e4 {[%emt 0:00:24]} d5 {[%emt 0:00:08]} 3. d4 {[%emt 0:00:43]} a6 {[%emt 0:00:12]} 4. Nf3 {[%emt 0:00:46]} Nf6 {[%emt 0:00:32]} 5. e5 {[%emt 0:01:02]} Nfd7 {[%emt 0:00:10]} 6. Ne2 {[%emt 0:00:03]} c5 {[%emt 0:00:21]} 7. c3 {[%emt 0:00:03]} b5 {[%emt 0:15:16]} 8. Nf4 {[%emt 0:10:15]} Qb6 {[%emt 0:02:01]} 9. Bd3 {[%emt 0:00:33]} Be7 {[%emt 0:09:36]} 10. h4 {[%emt 0:02:19]} h6 {[%emt 0:00:17]} 11. Be3 {[%emt 0:06:53]} b4 {[%emt 0:10:35]} 12. Nd2 {[%emt 0:03:08]} c4 {[%emt 0:04:25]} 13. Bc2 {[%emt 0:00:10]} bxc3 {[%emt 0:00:44]} 14. bxc3 {[%emt 0:00:02]} Qb2 {[%emt 0:00:20]} 15. Ne2 {[%emt 0:09:14]} Qa3 {[%emt 0:17:16]} 16. h5 {[%emt 0:01:18]} Qa5 {[%emt 0:03:15]} 17. Rh3 {[%emt 0:07:33]} Nc6 {[%emt 0:00:19]} 18. Rg3 {[%emt 0:00:47]} Bf8 {[%emt 0:00:20]} 19. Nf1 {[%emt 0:04:44]} Rb8 {[%emt 0:10:54]} 20. Bc1 {[%emt 0:00:10]} Na7 {[%emt 0:04:37]} 21. a4 {[%emt 0:02:59]} Nc6 {[%emt 0:01:42]} 22. f4 {[%emt 0:06:24]} Qd8 {[%emt 0:11:19]} 23. Rh3 {[%emt 0:08:50]} Be7 {[%emt 0:01:41]} 24. Ba3 {[%emt 0:01:04]} Bxa3 {[%emt 0:00:38]} 25. Rxa3 {[%emt 0:00:01]} Qe7 {[%emt 0:01:52]} 26. Ra2 {[%emt 0:00:21]} O-O {[%emt 0:00:50]} 27. g4 {[%emt 0:01:35]} f6 {[%emt 0:00:12]} 28. Nh2 {[%emt 0:05:15]} fxe5 {[%emt 0:00:18]} 29. dxe5 {[%emt 0:01:10]} Nc5 {[%emt 0:00:45]} 30. Qd2 {[%emt 0:00:59]} Nd3+ {[%emt 0:00:47]} 31. Bxd3 {[%emt 0:00:18]} cxd3 {[%emt 0:00:01]} 32. Qxd3 {[%emt 0:00:37]} d4 {[%emt 0:00:32]} 33. g5 {[%emt 0:00:31]} dxc3 {[%emt 0:01:02]} 34. gxh6 {[%emt 0:00:40]} Nb4 {[%emt 0:00:01]} 35. Qe4 {[%emt 0:11:19]} Qb7 {[%emt 0:01:03]} 36. Qg6 {[%emt 0:03:50]} Nxa2 {[%emt 0:00:01]} 37. hxg7 {[%emt 0:01:22]} Qxg7 {[%emt 0:00:26]} 38. Qe4 {[%emt 0:01:29]} Bb7 {[%emt 0:00:42]} 39. Qc2 {[%emt 0:00:02]} Nb4 {[%emt 0:00:30]} 40. Qxc3 {[%emt 0:00:00]} Nd5 {[%emt 0:00:00]} 41. Qd4 {[%emt 0:01:35]} Kh8 {[%emt 0:01:16]} 42. Rg3 {[%emt 0:00:28]} Qe7 {[%emt 0:02:25]} 43. Nf3 {[%emt 0:00:17]} Qb4+ {[%emt 0:01:33]} 44. Qxb4 {[%emt 0:00:13]} Nxb4 {[%emt 0:00:07]} 45. Ng5 {[%emt 0:00:09]} Bd5 {[%emt 0:01:35]} 46. h6 {[%emt 0:00:04]} Nc6 {[%emt 0:01:46]} 0-1